[Event "*** Titled Tuesday 3|2 Blitz"]
[Site "Chess.com"]
[Date "2015.03.03"]
[Round "9"]
[White "michaelk123"]
[Black "HansCoolNiemann"]
[Result "1/2-1/2"]
[WhiteElo "1906"]
[BlackElo "1835"]
[TimeControl "180+2"]
[EndTime "12:56:50 PST"]
[Termination "Game drawn by repetition"]

1. e4 {[%clk 0:03:00]} 1... b6 {[%clk 0:02:52.7]} 2. d4 {[%clk 0:03:00.8]} 2...
Bb7 {[%clk 0:02:54.6]} 3. Bd3 {[%clk 0:03:01.9]} 3... e6 {[%clk 0:02:55.8]} 4.
Nd2 {[%clk 0:03:02]} 4... c5 {[%clk 0:02:54.5]} 5. c3 {[%clk 0:03:02.9]} 5... d5
{[%clk 0:02:53.7]} 6. e5 {[%clk 0:03:03.8]} 6... c4 {[%clk 0:02:53.5]} 7. Bc2
{[%clk 0:03:04.5]} 7... Nc6 {[%clk 0:02:55.1]} 8. Ne2 {[%clk 0:03:05.9]} 8... b5
{[%clk 0:02:56.2]} 9. O-O {[%clk 0:03:06.9]} 9... b4 {[%clk 0:02:57.6]} 10. f4
{[%clk 0:03:04.1]} 10... g6 {[%clk 0:02:58.4]} 11. g4 {[%clk 0:02:59.3]} 11...
Qa5 {[%clk 0:02:55.4]} 12. f5 {[%clk 0:02:59.1]} 12... Bh6 {[%clk 0:02:55.8]}
13. Nf3 {[%clk 0:02:53.6]} 13... Bxc1 {[%clk 0:02:54.6]} 14. Qxc1 {[%clk
0:02:53.9]} 14... exf5 {[%clk 0:02:48.7]} 15. gxf5 {[%clk 0:02:54.1]} 15...
O-O-O {[%clk 0:02:50.1]} 16. b3 {[%clk 0:02:44.6]} 16... bxc3 {[%clk 0:02:49.4]}
17. bxc4 {[%clk 0:02:45.1]} 17... dxc4 {[%clk 0:02:50.7]} 18. Be4 {[%clk
0:02:43.3]} 18... Nce7 {[%clk 0:02:47.8]} 19. Bxb7+ {[%clk 0:02:43]} 19... Kxb7
{[%clk 0:02:48.2]} 20. Rb1+ {[%clk 0:02:44.6]} 20... Kc8 {[%clk 0:02:48.8]} 21.
f6 {[%clk 0:02:03.4]} 21... Nd5 {[%clk 0:02:44.7]} 22. Nf4 {[%clk 0:01:36.8]}
22... h5 {[%clk 0:02:31.8]} 23. Nxd5 {[%clk 0:01:34.4]} 23... Rxd5 {[%clk
0:02:33.7]} 24. Qf4 {[%clk 0:01:30]} 24... Qc7 {[%clk 0:02:28.2]} 25. Qe4 {[%clk
0:01:27.9]} 25... Qd7 {[%clk 0:02:22.3]} 26. Kh1 {[%clk 0:01:10.8]} 26... Nh6
{[%clk 0:02:20.4]} 27. Rbc1 {[%clk 0:01:05.9]} 27... Kb8 {[%clk 0:02:16]} 28.
Rxc3 {[%clk 0:01:05.4]} 28... Rc8 {[%clk 0:02:17.6]} 29. Qf4 {[%clk 0:01:00.3]}
29... Nf5 {[%clk 0:02:16.2]} 30. e6+ {[%clk 0:00:55]} 30... Qd6 {[%clk
0:02:17.1]} 31. Qxd6+ {[%clk 0:00:26.2]} 31... Nxd6 {[%clk 0:02:18.7]} 32. e7
{[%clk 0:00:22.8]} 32... Rf5 {[%clk 0:02:19.2]} 33. Nd2 {[%clk 0:00:20.3]} 33...
Rxf1+ {[%clk 0:02:17.9]} 34. Nxf1 {[%clk 0:00:22.2]} 34... Ne4 {[%clk
0:02:19.1]} 35. Rxc4 {[%clk 0:00:19.6]} 35... Nxf6 {[%clk 0:02:16.5]} 36. Rb4+
{[%clk 0:00:08]} 36... Kc7 {[%clk 0:02:14]} 37. Ne3 {[%clk 0:00:09]} 37... Re8
{[%clk 0:02:11.8]} 38. Ra4 {[%clk 0:00:07.2]} 38... Kb7 {[%clk 0:02:08.7]} 39.
Rb4+ {[%clk 0:00:06.4]} 39... Ka6 {[%clk 0:02:07.5]} 40. Rc4 {[%clk 0:00:03.4]}
40... Kb6 {[%clk 0:02:08.8]} 41. d5 {[%clk 0:00:03.6]} 41... Rxe7 {[%clk
0:02:04.9]} 42. Rc6+ {[%clk 0:00:04.7]} 42... Kb7 {[%clk 0:02:06.6]} 43. Rxf6
{[%clk 0:00:03.8]} 43... Rxe3 {[%clk 0:02:08.3]} 44. Rxf7+ {[%clk 0:00:05.3]}
44... Kb6 {[%clk 0:02:09.9]} 45. Rf6+ {[%clk 0:00:04.4]} 45... Kc5 {[%clk
0:02:11.1]} 46. Rxg6 {[%clk 0:00:04.5]} 46... Re1+ {[%clk 0:02:12.3]} 47. Kg2
{[%clk 0:00:04.5]} 47... Re2+ {[%clk 0:02:14.2]} 48. Kg3 {[%clk 0:00:03.5]}
48... Re1 {[%clk 0:02:16.1]} 49. Kf4 {[%clk 0:00:03.7]} 49... Re2 {[%clk
0:02:18]} 50. d6 {[%clk 0:00:03.8]} 50... Rxa2 {[%clk 0:02:16.8]} 51. Rg5+
{[%clk 0:00:05.2]} 51... Kxd6 {[%clk 0:02:17]} 52. Rxh5 {[%clk 0:00:07.1]} 52...
a5 {[%clk 0:02:16.6]} 53. Ke3 {[%clk 0:00:08.6]} 53... a4 {[%clk 0:02:17.6]} 54.
Kd3 {[%clk 0:00:10.2]} 54... Rb2 {[%clk 0:02:17.1]} 55. Kc3 {[%clk 0:00:11.7]}
55... a3 {[%clk 0:02:18.5]} 56. Ra5 {[%clk 0:00:12.7]} 56... Rxh2 {[%clk
0:02:19.1]} 57. Rxa3 {[%clk 0:00:14]} 57... Rh3+ {[%clk 0:02:20.7]} 58. Kb2
{[%clk 0:00:15.4]} 58... Rh2+ {[%clk 0:02:21.5]} 59. Kc3 {[%clk 0:00:14.9]}
59... Kc5 {[%clk 0:02:22.6]} 60. Ra5+ {[%clk 0:00:15.6]} 60... Kb6 {[%clk
0:02:24]} 61. Rg5 {[%clk 0:00:17.2]} 61... Rh3+ {[%clk 0:02:24.4]} 62. Kc4
{[%clk 0:00:18.3]} 62... Rh4+ {[%clk 0:02:26.1]} 63. Kd5 {[%clk 0:00:19.3]}
63... Ra4 {[%clk 0:02:24.8]} 64. Rg1 {[%clk 0:00:20.2]} 64... Ra5+ {[%clk
0:02:25.8]} 65. Kd6 {[%clk 0:00:21.5]} 65... Ra3 {[%clk 0:02:27.3]} 66. Rb1+
{[%clk 0:00:22.2]} 66... Ka6 {[%clk 0:02:27.7]} 67. Kc5 {[%clk 0:00:22]} 67...
Rc3+ {[%clk 0:02:28.8]} 68. Kb4 {[%clk 0:00:23.2]} 68... Rc7 {[%clk 0:02:30.1]}
69. Rh1 {[%clk 0:00:24]} 69... Rb7+ {[%clk 0:02:31]} 70. Kc5 {[%clk 0:00:24.9]}
70... Rc7+ {[%clk 0:02:31.9]} 71. Kd6 {[%clk 0:00:25.9]} 71... Rc2 {[%clk
0:02:33.5]} 72. Rb1 {[%clk 0:00:26.2]} 72... Rd2+ {[%clk 0:02:34.2]} 73. Kc6
{[%clk 0:00:26.6]} 73... Rc2+ {[%clk 0:02:35.6]} 74. Kd5 {[%clk 0:00:27.7]}
74... Rd2+ {[%clk 0:02:37.3]} 75. Kc6 {[%clk 0:00:29.1]} 75... Rc2+ {[%clk
0:02:38.6]} 76. Kd5 {[%clk 0:00:30.3]} 76... Rd2+ {[%clk 0:02:40]} 77. Kc6
{[%clk 0:00:31.9]} 77... Rc2+ {[%clk 0:02:41.6]} 78. Kd5 {[%clk 0:00:33.2]}
78... Rd2+ {[%clk 0:02:43.3]} 79. Kc6 {[%clk 0:00:34.8]} 79... Rc2+ {[%clk
0:02:45]} 80. Kd5 {[%clk 0:00:36.3]} 80... Rd2+ {[%clk 0:02:46.9]} 81. Kc6
{[%clk 0:00:37.8]} 81... Rc2+ {[%clk 0:02:48.8]} 1/2-1/2

[Event "*** Titled Tuesday 3|2 Blitz"]
[Site "Chess.com"]
[Date "2015.03.03"]
[Round "9"]
[White "LADIESGET2KNOWME"]
[Black "DanielRensch"]
[Result "0-1"]
[WhiteElo "2249"]
[BlackElo "2257"]
[TimeControl "180+2"]
[EndTime "12:56:56 PST"]
[Termination "DanielRensch won by checkmate"]

1. d4 {[%clk 0:03:00]} 1... Nf6 {[%clk 0:02:58.5]} 2. Nf3 {[%clk 0:03:00.7]}
2... c5 {[%clk 0:02:59.3]} 3. c3 {[%clk 0:02:58.8]} 3... b6 {[%clk 0:03:00]} 4.
Bf4 {[%clk 0:02:55.9]} 4... Bb7 {[%clk 0:03:00]} 5. e3 {[%clk 0:02:57.4]} 5...
g6 {[%clk 0:03:00.9]} 6. h3 {[%clk 0:02:58.4]} 6... Bg7 {[%clk 0:03:01.1]} 7.
Be2 {[%clk 0:03:00]} 7... O-O {[%clk 0:03:02.1]} 8. Nbd2 {[%clk 0:03:01.6]} 8...
d6 {[%clk 0:03:03.4]} 9. O-O {[%clk 0:03:03]} 9... Nbd7 {[%clk 0:03:03.9]} 10.
a4 {[%clk 0:03:03.7]} 10... a6 {[%clk 0:03:04.9]} 11. Qb3 {[%clk 0:03:02.6]}
11... Re8 {[%clk 0:03:04.5]} 12. Nc4 {[%clk 0:03:03.2]} 12... Bd5 {[%clk
0:02:55.4]} 13. Qd1 {[%clk 0:02:57.8]} 13... b5 {[%clk 0:02:51]} 14. axb5 {[%clk
0:02:49.6]} 14... axb5 {[%clk 0:02:52.9]} 15. Na3 {[%clk 0:02:50.5]} 15... b4
{[%clk 0:02:52.6]} 16. Nc4 {[%clk 0:02:50.5]} 16... bxc3 {[%clk 0:02:51.9]} 17.
bxc3 {[%clk 0:02:52.4]} 17... Ne4 {[%clk 0:02:49.9]} 18. Qc2 {[%clk 0:02:45.6]}
18... Qc7 {[%clk 0:02:40.2]} 19. Rac1 {[%clk 0:02:19.6]} 19... Rec8 {[%clk
0:01:51.6]} 20. Ncd2 {[%clk 0:02:14.8]} 20... Nxd2 {[%clk 0:01:47.6]} 21. Qxd2
{[%clk 0:02:16.7]} 21... Ra2 {[%clk 0:01:44.1]} 22. Qd1 {[%clk 0:02:05.6]} 22...
cxd4 {[%clk 0:01:38.2]} 23. exd4 {[%clk 0:01:57.6]} 23... Nb6 {[%clk 0:01:14.6]}
24. Nd2 {[%clk 0:01:44.8]} 24... e5 {[%clk 0:01:11.1]} 25. dxe5 {[%clk
0:01:36.8]} 25... dxe5 {[%clk 0:01:13]} 26. Be3 {[%clk 0:01:27.9]} 26... Qc6
{[%clk 0:01:13.4]} 27. Bf3 {[%clk 0:01:18.6]} 27... Bxf3 {[%clk 0:00:59.2]} 28.
Qxf3 {[%clk 0:01:11.8]} 28... Qxf3 {[%clk 0:00:59.5]} 29. Nxf3 {[%clk
0:01:12.9]} 29... Nc4 {[%clk 0:01:00.2]} 30. Bg5 {[%clk 0:00:55.4]} 30... f6
{[%clk 0:00:56.7]} 31. Bh4 {[%clk 0:00:55.8]} 31... f5 {[%clk 0:00:57.4]} 32.
Rfd1 {[%clk 0:00:51.6]} 32... h6 {[%clk 0:00:31.2]} 33. Be7 {[%clk 0:00:52.8]}
33... e4 {[%clk 0:00:25.9]} 34. Nd4 {[%clk 0:00:52.3]} 34... Ne5 {[%clk
0:00:25.5]} 35. Nb5 {[%clk 0:00:39.3]} 35... Nd3 {[%clk 0:00:25.1]} 36. Ra1
{[%clk 0:00:38.6]} 36... Rxa1 {[%clk 0:00:18.9]} 37. Rxa1 {[%clk 0:00:40.5]}
37... Bxc3 {[%clk 0:00:19.7]} 38. Nxc3 {[%clk 0:00:34]} 38... Rxc3 {[%clk
0:00:20.3]} 39. Bf6 {[%clk 0:00:33.5]} 39... Rc2 {[%clk 0:00:16.7]} 40. Ra7
{[%clk 0:00:31.7]} 40... Rc1+ {[%clk 0:00:12.6]} 41. Kh2 {[%clk 0:00:31.9]}
41... Nxf2 {[%clk 0:00:13.9]} 42. Rg7+ {[%clk 0:00:29.9]} 42... Kf8 {[%clk
0:00:15.1]} 43. Rxg6 {[%clk 0:00:26.6]} 43... Kf7 {[%clk 0:00:15.3]} 44. Rxh6
{[%clk 0:00:26.6]} 44... f4 {[%clk 0:00:16.4]} 45. Bg5 {[%clk 0:00:21.8]} 45...
Rh1# {[%clk 0:00:16]} 0-1

[Event "*** Titled Tuesday 3|2 Blitz"]
[Site "Chess.com"]
[Date "2015.03.03"]
[Round "9"]
[White "FabianEnglert"]
[Black "IMRosen"]
[Result "1/2-1/2"]
[WhiteElo "2245"]
[BlackElo "2132"]
[TimeControl "180+2"]
[EndTime "12:56:57 PST"]
[Termination "Game drawn - insufficient material"]

1. Nf3 {[%clk 0:03:00]} 1... Nf6 {[%clk 0:02:58.5]} 2. c4 {[%clk 0:03:00.8]}
2... e6 {[%clk 0:02:59.5]} 3. g3 {[%clk 0:03:01.3]} 3... d5 {[%clk 0:03:00.8]}
4. Bg2 {[%clk 0:03:02.6]} 4... dxc4 {[%clk 0:03:00.9]} 5. O-O {[%clk 0:03:03.6]}
5... a6 {[%clk 0:03:00.9]} 6. Na3 {[%clk 0:03:01.9]} 6... Bxa3 {[%clk
0:02:59.7]} 7. bxa3 {[%clk 0:03:01]} 7... Nc6 {[%clk 0:03:01.1]} 8. Bb2 {[%clk
0:03:00.5]} 8... O-O {[%clk 0:02:48.5]} 9. Rc1 {[%clk 0:02:52.1]} 9... Re8
{[%clk 0:02:20.9]} 10. Rxc4 {[%clk 0:02:45.6]} 10... e5 {[%clk 0:02:22.2]} 11.
Rxc6 {[%clk 0:02:38.9]} 11... bxc6 {[%clk 0:02:24.1]} 12. Nxe5 {[%clk 0:02:40]}
12... Bb7 {[%clk 0:01:48.5]} 13. d4 {[%clk 0:02:13.7]} 13... Qd6 {[%clk
0:01:36]} 14. Qc2 {[%clk 0:02:01]} 14... Nd5 {[%clk 0:01:19.5]} 15. Rc1 {[%clk
0:01:49.6]} 15... Rad8 {[%clk 0:01:08]} 16. e3 {[%clk 0:01:39.3]} 16... Qh6
{[%clk 0:00:50.2]} 17. Nxc6 {[%clk 0:01:21.1]} 17... Rd6 {[%clk 0:00:49.2]} 18.
Ne5 {[%clk 0:01:14.7]} 18... Nxe3 {[%clk 0:00:21.3]} 19. fxe3 {[%clk 0:01:07.8]}
19... Qxe3+ {[%clk 0:00:22.7]} 20. Qf2 {[%clk 0:01:08.8]} 20... Qxf2+ {[%clk
0:00:20.5]} 21. Kxf2 {[%clk 0:01:09.7]} 21... Bxg2 {[%clk 0:00:22.2]} 22. Kxg2
{[%clk 0:01:09.4]} 22... f6 {[%clk 0:00:23.9]} 23. Nc4 {[%clk 0:00:41.4]} 23...
Re2+ {[%clk 0:00:24.3]} 24. Kf3 {[%clk 0:00:42.3]} 24... Rde6 {[%clk 0:00:22.1]}
25. d5 {[%clk 0:00:43.5]} 25... Re7 {[%clk 0:00:17.2]} 26. Bc3 {[%clk 0:00:38]}
26... Rxh2 {[%clk 0:00:15.9]} 27. Bb4 {[%clk 0:00:38.8]} 27... Rd7 {[%clk
0:00:17.2]} 28. Ne3 {[%clk 0:00:38.4]} 28... Rxa2 {[%clk 0:00:17.6]} 29. Rc6
{[%clk 0:00:36.6]} 29... a5 {[%clk 0:00:17.8]} 30. Bxa5 {[%clk 0:00:37.1]} 30...
Rxa3 {[%clk 0:00:17.5]} 31. Bxc7 {[%clk 0:00:37.2]} 31... Rxd5 {[%clk 0:00:18]}
32. Bd6 {[%clk 0:00:35.1]} 32... Rdd3 {[%clk 0:00:17.8]} 33. Bxa3 {[%clk
0:00:35.6]} 33... Rxa3 {[%clk 0:00:17.8]} 34. g4 {[%clk 0:00:36.7]} 34... Ra7
{[%clk 0:00:17]} 35. Nf5 {[%clk 0:00:37.2]} 35... Kf7 {[%clk 0:00:17.6]} 36. Rd6
{[%clk 0:00:34.4]} 36... Ra3+ {[%clk 0:00:18]} 37. Kf4 {[%clk 0:00:34.9]} 37...
Ra4+ {[%clk 0:00:19.5]} 38. Rd4 {[%clk 0:00:32.4]} 38... Rxd4+ {[%clk
0:00:11.7]} 39. Nxd4 {[%clk 0:00:34.3]} 39... g6 {[%clk 0:00:13.3]} 40. Nb5
{[%clk 0:00:25.1]} 40... h5 {[%clk 0:00:13.4]} 41. Nd6+ {[%clk 0:00:24.7]} 41...
Ke6 {[%clk 0:00:13.3]} 42. gxh5 {[%clk 0:00:25.8]} 42... gxh5 {[%clk 0:00:15.2]}
43. Ne4 {[%clk 0:00:26.6]} 43... h4 {[%clk 0:00:14.6]} 44. Nxf6 {[%clk
0:00:27.7]} 44... h3 {[%clk 0:00:13.9]} 45. Kg3 {[%clk 0:00:28.7]} 45... h2
{[%clk 0:00:13.8]} 46. Kxh2 {[%clk 0:00:29.8]} 1/2-1/2

[Event "*** Titled Tuesday 3|2 Blitz"]
[Site "Chess.com"]
[Date "2015.03.03"]
[Round "9"]
[White "Novak_Pezelj"]
[Black "destroyer305"]
[Result "1-0"]
[WhiteElo "2381"]
[BlackElo "2198"]
[TimeControl "180+2"]
[EndTime "12:57:57 PST"]
[Termination "Novak_Pezelj won on time"]

1. e4 {[%clk 0:03:00]} 1... c5 {[%clk 0:02:58.5]} 2. Bc4 {[%clk 0:02:59]} 2...
g6 {[%clk 0:02:59.3]} 3. Nc3 {[%clk 0:03:00.1]} 3... Bg7 {[%clk 0:03:00.3]} 4.
d3 {[%clk 0:03:01.6]} 4... Nc6 {[%clk 0:03:01.2]} 5. Nge2 {[%clk 0:03:02.6]}
5... d6 {[%clk 0:02:59.4]} 6. O-O {[%clk 0:03:03.6]} 6... Nf6 {[%clk 0:03:00.9]}
7. Bg5 {[%clk 0:03:03.3]} 7... Nd4 {[%clk 0:02:59.2]} 8. Nxd4 {[%clk 0:03:03.2]}
8... cxd4 {[%clk 0:03:00.3]} 9. Ne2 {[%clk 0:03:04.3]} 9... Qb6 {[%clk
0:02:55.4]} 10. a4 {[%clk 0:02:46.7]} 10... a5 {[%clk 0:02:49.8]} 11. Bb5+
{[%clk 0:02:32.3]} 11... Bd7 {[%clk 0:02:48.8]} 12. Ra3 {[%clk 0:02:32.7]} 12...
Bxb5 {[%clk 0:02:13.1]} 13. Rb3 {[%clk 0:02:31.2]} 13... Qc5 {[%clk 0:02:14.7]}
14. Rxb5 {[%clk 0:02:29.7]} 14... Qa7 {[%clk 0:02:12.6]} 15. c3 {[%clk
0:02:22.1]} 15... dxc3 {[%clk 0:02:12.7]} 16. bxc3 {[%clk 0:02:24]} 16... O-O
{[%clk 0:02:13.5]} 17. Qb3 {[%clk 0:02:24.3]} 17... Rab8 {[%clk 0:02:03.9]} 18.
Be3 {[%clk 0:02:11.5]} 18... Qa6 {[%clk 0:02:00]} 19. Rb1 {[%clk 0:01:59.3]}
19... Ng4 {[%clk 0:01:55.6]} 20. Bb6 {[%clk 0:01:59.3]} 20... Ne5 {[%clk
0:01:14.7]} 21. d4 {[%clk 0:01:43.5]} 21... Nc6 {[%clk 0:01:14.9]} 22. d5 {[%clk
0:01:21]} 22... Na7 {[%clk 0:01:12.1]} 23. Bxa7 {[%clk 0:01:05.2]} 23... Qxa7
{[%clk 0:01:11.9]} 24. Rxb7 {[%clk 0:01:04.5]} 24... Rxb7 {[%clk 0:01:10.2]} 25.
Qxb7 {[%clk 0:01:06.4]} 25... Qc5 {[%clk 0:01:11.8]} 26. Qb5 {[%clk 0:01:07.2]}
26... Qc7 {[%clk 0:01:08.3]} 27. Rb3 {[%clk 0:01:00.8]} 27... Rc8 {[%clk
0:01:04.7]} 28. g3 {[%clk 0:01:00.4]} 28... Qc4 {[%clk 0:00:59.4]} 29. f3 {[%clk
0:00:54.1]} 29... Rc5 {[%clk 0:00:47.1]} 30. Qxc4 {[%clk 0:00:52.1]} 30... Rxc4
{[%clk 0:00:49]} 31. Rb8+ {[%clk 0:00:42.7]} 31... Bf8 {[%clk 0:00:49.5]} 32.
Ra8 {[%clk 0:00:43]} 32... Rxa4 {[%clk 0:00:49.8]} 33. Kf2 {[%clk 0:00:42.2]}
33... Kg7 {[%clk 0:00:47.2]} 34. Ke3 {[%clk 0:00:34.7]} 34... Ra2 {[%clk
0:00:47.6]} 35. h4 {[%clk 0:00:35.2]} 35... h5 {[%clk 0:00:47.5]} 36. Nd4 {[%clk
0:00:32.7]} 36... Rg2 {[%clk 0:00:47.9]} 37. Kf4 {[%clk 0:00:32.6]} 37... Ra2
{[%clk 0:00:28.7]} 38. g4 {[%clk 0:00:32.1]} 38... hxg4 {[%clk 0:00:27.8]} 39.
Kxg4 {[%clk 0:00:33.5]} 39... a4 {[%clk 0:00:29.5]} 40. h5 {[%clk 0:00:34.7]}
40... gxh5+ {[%clk 0:00:28.8]} 41. Kxh5 {[%clk 0:00:36.6]} 41... Ra1 {[%clk
0:00:29.5]} 42. Nf5+ {[%clk 0:00:35.6]} 42... Kg8 {[%clk 0:00:21.2]} 43. Nxe7+
{[%clk 0:00:36.7]} 43... Kg7 {[%clk 0:00:22.9]} 44. Nf5+ {[%clk 0:00:38.3]}
44... Kg8 {[%clk 0:00:24.4]} 45. Kg5 {[%clk 0:00:38.4]} 45... a3 {[%clk
0:00:20.2]} 46. Kf6 {[%clk 0:00:39.2]} 46... a2 {[%clk 0:00:17.8]} 47. c4 {[%clk
0:00:33]} 47... Kh7 {[%clk 0:00:17.5]} 48. Ra7 {[%clk 0:00:18.1]} 48... Kg8
{[%clk 0:00:16]} 49. Ra8 {[%clk 0:00:19]} 49... Kh7 {[%clk 0:00:17]} 50. Kxf7
{[%clk 0:00:20.5]} 50... Bh6 {[%clk 0:00:11.5]} 51. Nxh6 {[%clk 0:00:20.7]}
51... Kxh6 {[%clk 0:00:12.7]} 52. Ke6 {[%clk 0:00:21.1]} 52... Kg5 {[%clk
0:00:12.5]} 53. Kxd6 {[%clk 0:00:22.6]} 53... Kf4 {[%clk 0:00:14.1]} 54. e5
{[%clk 0:00:24]} 54... Kxf3 {[%clk 0:00:12.3]} 55. e6 {[%clk 0:00:25.1]} 55...
Ke3 {[%clk 0:00:02.6]} 56. e7 {[%clk 0:00:26.1]} 1-0

[Event "*** Titled Tuesday 3|2 Blitz"]
[Site "Chess.com"]
[Date "2015.03.03"]
[Round "9"]
[White "Schemato"]
[Black "Irochka83"]
[Result "0-1"]
[WhiteElo "2070"]
[BlackElo "2261"]
[TimeControl "180+2"]
[EndTime "12:57:57 PST"]
[Termination "Irochka83 won by resignation"]

1. c4 {[%clk 0:03:00]} 1... e5 {[%clk 0:02:58]} 2. g3 {[%clk 0:02:58.3]} 2...
Nc6 {[%clk 0:02:58.8]} 3. Nc3 {[%clk 0:02:58.7]} 3... g6 {[%clk 0:03:00.3]} 4.
Bg2 {[%clk 0:02:59]} 4... Bg7 {[%clk 0:03:02.1]} 5. e4 {[%clk 0:03:00.1]} 5...
d6 {[%clk 0:03:02.3]} 6. Nge2 {[%clk 0:03:01.2]} 6... h5 {[%clk 0:03:02.7]} 7.
h3 {[%clk 0:03:02.1]} 7... h4 {[%clk 0:03:02.8]} 8. g4 {[%clk 0:03:03.1]} 8...
f5 {[%clk 0:03:04]} 9. gxf5 {[%clk 0:02:47]} 9... gxf5 {[%clk 0:03:05.9]} 10. d3
{[%clk 0:02:41.6]} 10... f4 {[%clk 0:03:04.3]} 11. Bf3 {[%clk 0:02:41.4]} 11...
Nh6 {[%clk 0:02:45]} 12. Nd5 {[%clk 0:02:41.2]} 12... Nf7 {[%clk 0:02:39.5]} 13.
b3 {[%clk 0:02:35.4]} 13... Ng5 {[%clk 0:02:37.4]} 14. Ng1 {[%clk 0:02:27.2]}
14... Nxf3+ {[%clk 0:02:15.9]} 15. Nxf3 {[%clk 0:02:25.1]} 15... Be6 {[%clk
0:02:12.4]} 16. Bb2 {[%clk 0:02:25.6]} 16... Qd7 {[%clk 0:02:11.2]} 17. Ng5
{[%clk 0:02:18.7]} 17... Bg8 {[%clk 0:01:57.4]} 18. Qg4 {[%clk 0:02:13.3]} 18...
O-O-O {[%clk 0:01:44]} 19. Qxd7+ {[%clk 0:01:55.1]} 19... Kxd7 {[%clk
0:01:40.4]} 20. Ke2 {[%clk 0:01:49.6]} 20... Bh6 {[%clk 0:01:27.1]} 21. Rag1
{[%clk 0:01:42.3]} 21... Rf8 {[%clk 0:01:04.5]} 22. f3 {[%clk 0:01:37.1]} 22...
Nd8 {[%clk 0:00:44.4]} 23. Rg2 {[%clk 0:01:31]} 23... c6 {[%clk 0:00:44.1]} 24.
Nc3 {[%clk 0:01:24.7]} 24... Ne6 {[%clk 0:00:43.7]} 25. Nxe6 {[%clk 0:01:19]}
25... Bxe6 {[%clk 0:00:45.6]} 26. Nd1 {[%clk 0:01:19.2]} 26... Rfg8 {[%clk
0:00:45.3]} 27. Rxg8 {[%clk 0:01:07.9]} 27... Rxg8 {[%clk 0:00:46.1]} 28. Nf2
{[%clk 0:01:09]} 28... Rg2 {[%clk 0:00:47.5]} 29. Kf1 {[%clk 0:01:09.8]} 29...
Rg3 {[%clk 0:00:48.7]} 30. Ke2 {[%clk 0:01:10.1]} 30... Bg5 {[%clk 0:00:35.4]}
31. Bc3 {[%clk 0:00:58.3]} 31... Bf6 {[%clk 0:00:30.3]} 32. Be1 {[%clk
0:00:58.5]} 32... d5 {[%clk 0:00:24.5]} 33. Rh2 {[%clk 0:00:54.6]} 33... Rg1
{[%clk 0:00:18.7]} 34. Ng4 {[%clk 0:00:52.9]} 34... Bg7 {[%clk 0:00:14.6]} 35.
Kf2 {[%clk 0:00:50.3]} 35... Rg3 {[%clk 0:00:15.7]} 36. Ke2 {[%clk 0:00:35.6]}
36... dxe4 {[%clk 0:00:13.6]} 37. dxe4 {[%clk 0:00:34.3]} 37... b5 {[%clk
0:00:14.1]} 38. cxb5 {[%clk 0:00:23.8]} 38... cxb5 {[%clk 0:00:16]} 39. Kf2
{[%clk 0:00:15.4]} 39... Kc6 {[%clk 0:00:15.1]} 40. Bb4 {[%clk 0:00:15.7]} 40...
Kb6 {[%clk 0:00:10.8]} 41. Rh1 {[%clk 0:00:16.2]} 41... a5 {[%clk 0:00:09.8]}
42. Bc3 {[%clk 0:00:17.5]} 42... b4 {[%clk 0:00:07.4]} 43. Bb2 {[%clk
0:00:17.8]} 43... Kb5 {[%clk 0:00:06.5]} 44. Rh2 {[%clk 0:00:18.1]} 44... a4
{[%clk 0:00:07.4]} 45. Rh1 {[%clk 0:00:17.8]} 45... axb3 {[%clk 0:00:07.7]} 46.
axb3 {[%clk 0:00:18.3]} 46... Bxb3 {[%clk 0:00:09.6]} 47. Nxe5 {[%clk 0:00:18]}
47... Be6 {[%clk 0:00:06.3]} 48. Nd3 {[%clk 0:00:18.9]} 48... Bxb2 {[%clk
0:00:06.6]} 49. Nxb2 {[%clk 0:00:20.8]} 49... Rxh3 {[%clk 0:00:05.7]} 50. Rxh3
{[%clk 0:00:19.2]} 50... Bxh3 {[%clk 0:00:07.6]} 51. Nd3 {[%clk 0:00:20.3]}
51... b3 {[%clk 0:00:08.8]} 52. Ke2 {[%clk 0:00:15.6]} 52... Kc4 {[%clk
0:00:10.1]} 53. Kd2 {[%clk 0:00:16.6]} 53... Bf1 {[%clk 0:00:09.6]} 54. Nxf4
{[%clk 0:00:17.8]} 54... h3 {[%clk 0:00:09.6]} 55. Nxh3 {[%clk 0:00:18.1]} 55...
Bxh3 {[%clk 0:00:11.3]} 56. Kc1 {[%clk 0:00:19.1]} 56... Kc3 {[%clk 0:00:12]}
57. e5 {[%clk 0:00:17.8]} 57... b2+ {[%clk 0:00:13]} 0-1